[Event "26th Womens ECCC 2022"]
[Site "Mayrhofen"]
[Date "2022.10.07"]
[Round "5.21"]
[White "Buksa, Nataliya"]
[Black "Ptacnikova, Lenka"]
[Result "1-0"]
[ECO "B22"]
[WhiteElo "2413"]
[BlackElo "2055"]
[Annotator "TA"]
[PlyCount "70"]
[EventDate "2022.10.03"]
[EventType "team-tourn"]
[EventCountry "AUT"]
[SourceTitle "playchess.com"]
[Source "ChessBase"]
[SourceQuality "1"]
[TimeControl "40/5400+30:1800+30"]

{[%evp 9,70,8,11,14,25,-7,17,10,26,2,5,0,0,8,-2,12,28,12,25,-23,7,0,40,39,38,19,24,0,0,0,0,0,10,0,14,16,0,0,0,-7,-15,-7,-8,-8,0,0,13,14,94,91,452,450,432,420,445,443,554,537,537,537,518,517,465]} 1. e4 {[%emt 0:00:02][%cal Be2e4,Be4e5][%mdl 32]} c5 {[%emt 0:00:05]} 2. c3 {[%emt 0:00:04]} Nf6 {[%emt 0:00:08]} 3. e5 {[%emt 0:00:04]} Nd5 {[%emt 0:00:07]} 4. Bc4 {[%emt 0:00:04]} Nb6 {[%emt 0:02:09]} 5. Bb3 {[%emt 0:00:04]} d5 {[%emt 0:02:07]} 6. exd6 {[%emt 0:00:05] B22: Sicilian: 2 c3.} Qxd6 {[%emt 0:00:15]} 7. Na3 {[%emt 0:00:04] The modern move.} a6 {[%emt 0:00:33]} 8. Ne2 {[%emt 0:00:55] The position is equal.} Nc6 {[%emt 0:03:50]} 9. O-O {[%emt 0:00:05]} e6 {[%emt 0:11:31]} 10. d4 {[%emt 0:04:00]} cxd4 {[%emt 0:00:25]} 11. cxd4 {[%emt 0:07:27]} Be7 {[%emt 0:03:07]} 12. Bf4 {[%emt 0:00:29] [#]} Qd7 $146 {[%emt 0:03:09]} ({Predecessor:} 12... Qd8 13. Rc1 O-O 14. Nc4 Nxc4 15. Bxc4 Nb4 16. Nc3 b5 17. Bb3 Bb7 18. Be5 Rc8 {1-0 (47) Shevchenko,K (2592)-Albornoz Cabrera,C (2573) Chess.com INT 2020}) 13. Qd3 {[%emt 0:03:38]} Nd5 {[%emt 0:04:55]} 14. Bg3 {[%emt 0:00:59]} (14. Bxd5 {deserves consideration.} exd5 15. Nc2) 14... b5 {[%emt 0:04:29]} 15. Nc2 {[%emt 0:01:38]} Na5 {[%emt 0:04:26]} 16. Bxd5 {[%emt 0:01:12]} exd5 {[%emt 0:04:05]} 17. Ne3 {[%emt 0:00:05]} (17. Nf4 $5 {[%cal Rd3c3]}) 17... Nc4 {[%emt 0:01:30]} 18. b3 {[%emt 0:06:14]} (18. Nf4 $5 {[%cal Re3d5]}) 18... Nxe3 {[%emt 0:05:32]} 19. Qxe3 {[%emt 0:00:05]} O-O {[%emt 0:00:29][%cal Bh8f8,Bf8e8,Be8e4][%mdl 32]} 20. Rac1 {[%emt 0:00:53]} Bd8 {[%emt 0:08:30] Against Rc7} 21. Nf4 {[%emt 0:01:31]} Re8 {[%emt 0:05:45]} 22. Qf3 {[%emt 0:00:44]} Re4 {[%emt 0:00:14]} 23. Nd3 {[%emt 0:07:30] [#] Hoping for Nc5.} Qg4 {[%emt 0:07:32]} 24. Rfe1 $40 {[%emt 0:13:12][%mdl 128] White attacks.} Qxf3 {[%emt 0:13:47]} 25. gxf3 {[%emt 0:00:03]} Rxe1+ {[%emt 0:01:00]} 26. Rxe1 {[%emt 0:00:03][%cal Re1e8]} Be6 {[%emt 0:06:15]} 27. Nf4 {[%emt 0:00:07]} Ba5 {[%emt 0:06:11]} 28. Re2 {[%emt 0:02:10]} Bf5 {[%emt 0:01:34]} (28... Bc3 $11 {keeps the balance.}) 29. Nxd5 $16 {[%emt 0:00:04] [#] And now Ne7+ would win.} Bd3 $2 {[%emt 0:00:10][%mdl 8192] This costs Black the game.} (29... Bd7 $16) 30. Re3 $18 {[%emt 0:01:16]} Bb1 {[%emt 0:00:21]} 31. b4 {[%emt 0:00:03][%cal Bb3b4,Bb4a5][%mdl 32]} Bxa2 {[%emt 0:01:16]} 32. Ne7+ {[%emt 0:00:04] White is clearly winning.} Kh8 {[%emt 0:00:12]} 33. bxa5 {[%emt 0:00:40]} b4 {[%emt 0:00:09]} 34. Bd6 {[%emt 0:00:09]} b3 {[%emt 0:01:03]} 35. Ba3 {[%emt 0:00:01]} h6 {[%emt 0:00:00] Weighted Error Value: White=0.07 (flawless) /Black=0.36} 1-0

[Event "26th Womens ECCC 2022"]
[Site "Mayrhofen"]
[Date "2022.10.07"]
[Round "5.22"]
[White "Johannsdottir, Johanna Bjorg"]
[Black "Gaponenko, Inna"]
[Result "0-1"]
[ECO "B30"]
[WhiteElo "1964"]
[BlackElo "2348"]
[Annotator "TA"]
[PlyCount "68"]
[EventDate "2022.10.03"]
[EventType "team-tourn"]
[EventCountry "AUT"]
[SourceTitle "playchess.com"]
[Source "ChessBase"]
[SourceQuality "1"]
[TimeControl "40/5400+30:1800+30"]

{[%evp 9,67,-8,-2,-5,-10,-18,-10,-31,-32,-33,-24,-62,-49,-52,-17,-33,-45,-35,-29,-34,33,0,0,-48,13,16,14,0,4,0,0,0,0,-16,-13,-12,-6,-33,-42,-98,-27,-26,-27,-404,-402,-391,-385,-465,-460,-443,-425,-460,-459,-393,-435,-1130,-1131,-29982,-29980,-29999]} 1. e4 {[%emt 0:00:03]} c5 {[%emt 0:00:04]} 2. Nf3 {[%emt 0:00:04]} Nc6 {[%emt 0:00:05]} 3. g3 {[%emt 0:00:52]} e5 {[%emt 0:10:43]} 4. Bg2 {[%emt 0:00:28]} g6 {[%emt 0:00:04]} 5. c3 {[%emt 0:00:13]} Bg7 {[%emt 0:00:03]} 6. Na3 {[%emt 0:00:22] B30: Sicilian: 2...Nc6 3 Bb5, lines without ...g6.} Nge7 {[%emt 0:00:06]} 7. O-O {[%emt 0:02:02][%cal Od2d4]} O-O {[%emt 0:00:37]} 8. Qe2 {[%emt 0:05:10] The position is equal.} h6 {[%emt 0:13:45]} 9. Rd1 {[%emt 0:01:12][%cal Od2d4]} d6 {[%emt 0:11:10] [#]} 10. h3 $146 {[%emt 0:04:37]} ({Predecessor:} 10. Nc2 Qb6 11. h3 Be6 12. d3 d5 13. Kh2 Rad8 14. b3 dxe4 15. dxe4 Rxd1 16. Qxd1 {1-0 (48) Walbaum,K (2095)-Gerst,M (1987) Germany 2016}) 10... f5 {[%emt 0:04:15]} (10... Be6 $5 {[%cal Rd8d7]}) 11. exf5 {[%emt 0:09:44]} Nxf5 {[%emt 0:01:06]} 12. g4 {[%emt 0:00:29]} Nh4 {[%emt 0:00:59]} 13. Nxh4 {[%emt 0:01:50]} Qxh4 {[%emt 0:00:01]} 14. Nb5 {[%emt 0:01:06]} Qe7 {[%emt 0:05:47]} (14... Qd8 $15) 15. d4 $1 $14 {[%emt 0:02:54]} a6 {[%emt 0:05:07]} 16. Na3 {[%emt 0:03:50]} (16. d5 $11 {is more appropriate.} Nb8 17. Na3) 16... exd4 {[%emt 0:13:59]} (16... cxd4 $15 17. cxd4 exd4 18. Qxe7 Nxe7) 17. Qxe7 $11 {[%emt 0:00:26]} Nxe7 {[%emt 0:00:02]} 18. cxd4 {[%emt 0:00:16]} cxd4 {[%emt 0:00:05]} 19. Nc4 {[%emt 0:00:41]} Be6 {[%emt 0:04:47]} 20. Nxd6 {[%emt 0:01:20]} Bd5 {[%emt 0:00:09]} 21. Nxb7 {[%emt 0:01:48]} Bxg2 {[%emt 0:00:41]} 22. Kxg2 {[%emt 0:00:05]} Rac8 {[%emt 0:03:44] Prevents Nc5.} 23. Nd6 {[%emt 0:03:11]} Rc2 {[%emt 0:08:08]} 24. Rd2 {[%emt 0:05:15]} (24. Bd2 $15) 24... Rc6 {[%emt 0:05:19] Black is more active.} ({Black should try} 24... d3 $1 $17 {White must now prevent ...Nd5.} 25. Ne4 Rd8) 25. Ne4 {[%emt 0:00:08]} Nd5 {[%emt 0:00:04]} 26. Rd3 $2 {[%emt 0:06:49][%mdl 8192] [#] This costs White the game.} (26. Kf1 $11 {and White has nothing to worry.}) 26... Rxc1 $1 $19 {[%emt 0:00:43][%mdl 576] Remove Defender} 27. Rxc1 {[%emt 0:00:33] Kf1 is the strong threat.} Nf4+ {[%emt 0:00:05]} 28. Kg3 {[%emt 0:00:52] Strongly threatening Rd2.} Nxd3 {[%emt 0:03:50]} 29. Rc6 {[%emt 0:00:08]} Be5+ {[%emt 0:01:33]} 30. Kg2 {[%emt 0:00:04]} Rf4 {[%emt 0:00:58]} 31. f3 {[%emt 0:00:16]} Ne1+ {[%emt 0:00:12]} 32. Kh1 {[%emt 0:00:30]} (32. Kf1 $142 Nxf3 33. Nc5) 32... Rxf3 {[%emt 0:03:51][%cal Rf3f1] [#]} 33. Rxg6+ {[%emt 0:00:19]} Kf7 {[%emt 0:01:27][%cal Rf3f1]} 34. Rxh6 {[%emt 0:00:16]} Rf1# {[%emt 0:00:04] Weighted Error Value: White=0.68/Black=0.12 (very precise)} 0-1

[Event "26th Womens ECCC 2022"]
[Site "Mayrhofen"]
[Date "2022.10.07"]
[Round "5.23"]
[White "Doluhanova, Evgeniya"]
[Black "Thorsteinsdottir, Hallgerdur"]
[Result "1-0"]
[ECO "B10"]
[WhiteElo "2264"]
[BlackElo "1959"]
[Annotator "TA"]
[PlyCount "33"]
[EventDate "2022.10.03"]
[EventType "team-tourn"]
[EventCountry "AUT"]
[SourceTitle "playchess.com"]
[Source "ChessBase"]
[SourceQuality "1"]
[TimeControl "40/5400+30:1800+30"]

{[%evp 9,33,-82,-80,-106,-63,-63,-78,-150,110,109,160,147,429,445,471,443,771,725,941,923,900,888,1132,1126,2581,2539]} 1. e4 {[%emt 0:00:49]} c6 {[%emt 0:00:12]} 2. d3 {[%emt 0:00:12]} d5 {[%emt 0:00:27]} 3. Nc3 {[%emt 0:00:11]} e5 {[%emt 0:01:52]} 4. exd5 {[%emt 0:02:23]} cxd5 {[%emt 0:00:18]} 5. Qe2 {[%emt 0:00:09]} Nc6 {[%emt 0:03:59] [#]} 6. f4 $146 {[%emt 0:03:46] B11: Caro-Kann: Two Knights Variation.} ({Predecessor:} 6. Nf3 Bg4 7. h3 Bxf3 8. Qxf3 Nd4 9. Qd1 Rc8 10. Bd2 Nf6 11. Rc1 h6 12. Ne2 {0-1 (30) Szilagyi,G (1899)-Szabo,Z (2169) Hungary 2008}) 6... f6 {[%emt 0:07:28]} ({Much weaker is} 6... d4 $6 7. Ne4 $11) 7. fxe5 {[%emt 0:02:57]} fxe5 {[%emt 0:00:46]} 8. Bf4 {[%emt 0:06:22]} (8. Nf3 $142) 8... Qd6 $2 {[%emt 0:08:14] [#]} (8... Bd6 $17 {and life is bright. Strongly threatening ...Nd4.} 9. Nf3 Bg4) 9. Nf3 $16 {[%emt 0:03:39][%cal Bg1f3,Bf3e5,Be5c4,Bc4d6][%mdl 32] Against Nd4} d4 {[%emt 0:30:41]} ({Black should try} 9... Nge7 10. Nxe5 Nd4) 10. Nxe5 {[%emt 0:08:38]} Nce7 {[%emt 0:07:24][%mdl 8192] Black cannot hold the game after this.} (10... dxc3 $16 11. Nxc6+ Qe6) 11. Ne4 $18 {[%emt 0:00:48][%cal Bc3e4,Be4d6,Bd6b7][%mdl 32] White is clearly winning.} Qd8 {[%emt 0:04:25]} 12. Nc4 {[%emt 0:02:27]} Qd5 {[%emt 0:02:22]} (12... Ng6 $142 13. Ned6+ Kd7 14. Qg4+ Kc6 15. Qf3+ Kd7 16. Qg4+ Kc6 17. Qf3+ Kd7 18. Nxb7 Qe7+ 19. Kd1 Nxf4) 13. g3 {[%emt 0:01:14] [#] Black must now prevent Ned6+.} Nf6 {[%emt 0:00:49]} 14. Ned6+ {[%emt 0:02:00]} Kd8 {[%emt 0:02:22]} 15. Bg2 {[%emt 0:00:12]} Qe6 {[%emt 0:07:18]} 16. Nxb7+ {[%emt 0:01:02]} Ke8 {[%emt 0:00:44]} 17. Ncd6+ {[%emt 0:00:15] Weighted Error Value: White=0.24 (precise) /Black=1.30} 1-0

[Event "26th Womens ECCC 2022"]
[Site "Mayrhofen"]
[Date "2022.10.07"]
[Round "5.24"]
[White "Thorsteinsdottir, Gudlaug"]
[Black "Tarleva, Diana"]
[Result "0-1"]
[ECO "A61"]
[WhiteElo "2014"]
[BlackElo "2175"]
[Annotator "TA"]
[PlyCount "70"]
[EventDate "2022.10.03"]
[EventType "team-tourn"]
[EventCountry "AUT"]
[SourceTitle "playchess.com"]
[Source "ChessBase"]
[SourceQuality "1"]
[TimeControl "40/5400+30:1800+30"]

{[%evp 22,70,53,52,59,50,45,52,53,7,30,15,53,4,18,-52,-52,-91,-39,-72,-62,-130,-131,-305,-300,-306,-304,-297,-303,-343,-300,-304,-304,-322,-318,-422,-315,-519,-518,-597,-579,-733,-719,-860,-832,-985,-994,-988,-962,-965,-949]} 1. d4 {[%emt 0:00:05]} Nf6 {[%emt 0:00:11]} 2. Nf3 {[%emt 0:00:04]} c5 {[%emt 0:00:32]} 3. d5 {[%emt 0:00:20]} e6 {[%emt 0:00:13]} 4. c4 {[%emt 0:00:05]} exd5 {[%emt 0:00:06]} 5. cxd5 {[%emt 0:00:07]} d6 {[%emt 0:00:06]} 6. Nc3 {[%emt 0:00:06]} g6 {[%emt 0:00:06]} 7. e4 {[%emt 0:01:12]} Bg7 {[%emt 0:00:48]} 8. h3 {[%emt 0:00:35]} O-O {[%emt 0:03:24]} 9. Bd3 {[%emt 0:03:06]} Re8 {[%emt 0:37:18]} 10. O-O {[%emt 0:00:50]} a6 {[%emt 0:08:10]} 11. a4 {[%emt 0:03:51]} Nbd7 {[%emt 0:00:34]} 12. Re1 {[%emt 0:04:30]} Ne5 {[%emt 0:03:48] A70: Modern Benoni: 6 e4 g6 7 Nf3.} 13. Nxe5 {[%emt 0:02:28]} Rxe5 {[%emt 0:01:27]} 14. Bf4 {[%emt 0:14:40]} Re8 {[%emt 0:04:32] White is slightly better.} 15. Bh2 {[%emt 0:07:39]} (15. Qd2 $14) 15... Nd7 $11 {[%emt 0:01:29]} 16. Kh1 {[%emt 0:05:44] [#]} g5 $146 {[%emt 0:11:50][%cal Bg6g5,Bg5g4][%mdl 32]} ({Predecessor:} 16... Ne5 17. f4 Nxd3 18. Qxd3 Qb6 19. Qd2 Bd7 20. a5 Qd8 21. e5 Bf5 22. Na4 Qh4 23. exd6 {1-0 (46) Lin,W (2371)-Chu,W (2422) Liaocheng 2021}) 17. Qc2 {[%emt 0:12:01]} (17. Bxd6 $14 c4 18. Be2 (18. Bxc4 Nb6 $15)) 17... Ne5 {[%emt 0:02:41]} 18. Ne2 {[%emt 0:06:04]} (18. f3 $11) 18... g4 $1 $15 {[%emt 0:02:39]} 19. Nf4 {[%emt 0:16:55]} Qh4 {[%emt 0:00:49]} ({Much weaker is} 19... Nxd3 $6 20. Qxd3 Bxb2 21. Rab1 $11) (19... gxh3 $1 $17 20. Nxh3 Qh4) 20. Bg3 {[%emt 0:01:36] [#]} Qh6 {[%emt 0:00:28]} 21. h4 {[%emt 0:02:30] [#]} (21. Bf1 $15) 21... Bf6 $1 $17 {[%emt 0:01:47]} 22. Re3 $2 {[%emt 0:01:27]} (22. Be2 $17) 22... Bg5 $19 {[%emt 0:03:21]} ({Not} 22... Bxh4 23. Bxh4 Qxh4+ 24. Kg1 $17) 23. Ne2 {[%emt 0:01:43]} Bxe3 {[%emt 0:00:35]} 24. fxe3 {[%emt 0:00:03]} Qxe3 {[%emt 0:00:57]} 25. Rd1 {[%emt 0:00:28]} Nxd3 {[%emt 0:04:29]} 26. Rxd3 {[%emt 0:00:04]} Qxe4 {[%emt 0:00:17]} 27. Nc3 {[%emt 0:00:04]} Qg6 {[%emt 0:00:11]} 28. Qd2 {[%emt 0:00:21]} Bd7 {[%emt 0:03:00][%cal Bc8d7,Bd7a4,Ba4b5][%mdl 32]} 29. Ne2 $2 {[%emt 0:02:02]} (29. a5) 29... Bxa4 {[%emt 0:01:10] Black is clearly winning.} 30. Nf4 {[%emt 0:00:22]} Qf5 {[%emt 0:00:12]} 31. Qc3 {[%emt 0:01:15]} Re4 {[%emt 0:01:42]} 32. Qd2 {[%emt 0:00:06]} Rae8 {[%emt 0:00:32] Hoping for ...Bb5.} 33. Kh2 {[%emt 0:00:07]} Bb5 {[%emt 0:02:10]} 34. Rc3 {[%emt 0:00:09]} Rd4 {[%emt 0:00:14]} 35. Qc1 {[%emt 0:00:06]} Ree4 {[%emt 0:00:22] White did not feel at home in the position after the opening.  Weighted Error Value: White=0.70/Black=0.12 (very precise)} 0-1

[Event "26th Womens ECCC 2022"]
[Site "Mayrhofen"]
[Date "2022.10.07"]
[Round "5.25"]
[White "Krasteva, Beloslava"]
[Black "Katkov, Michelle"]
[Result "1-0"]
[ECO "D03"]
[WhiteElo "2287"]
[BlackElo "2219"]
[Annotator "TA"]
[PlyCount "101"]
[EventDate "2022.10.03"]
[EventType "team-tourn"]
[EventCountry "AUT"]
[SourceTitle "playchess.com"]
[Source "ChessBase"]
[SourceQuality "1"]
[TimeControl "40/5400+30:1800+30"]

{[%evp 13,101,17,38,31,43,33,52,29,34,22,27,10,12,2,15,12,15,0,7,8,18,34,44,60,103,99,118,122,123,120,114,121,122,122,146,153,147,118,119,118,118,117,106,22,31,30,39,26,27,13,11,11,24,22,19,0,0,0,33,33,22,17,26,14,181,189,196,186,204,178,356,358,358,353,358,351,325,331,422,415,454,415,846,801,1055,988,1051,985,1150,1122]} 1. d4 {[%emt 0:00:06]} d5 {[%emt 0:00:06]} 2. Nf3 {[%emt 0:02:09]} Nf6 {[%emt 0:00:08]} 3. Bg5 {[%emt 0:01:32]} c5 {[%emt 0:03:30]} 4. e3 {[%emt 0:01:36]} Nc6 {[%emt 0:03:35]} 5. c3 {[%emt 0:01:04]} e6 {[%emt 0:01:03]} 6. Nbd2 {[%emt 0:00:33]} Be7 {[%emt 0:04:15]} 7. Bd3 {[%emt 0:00:18]} Qc7 {[%emt 0:01:05]} 8. O-O {[%emt 0:02:14] D03: 1 d4 d5 2 Nf3 Nf6 3 Bg5, including Torre Attack with early ...d5.} O-O {[%emt 0:11:24]} 9. dxc5 {[%emt 0:00:31]} Bxc5 {[%emt 0:02:36]} 10. Bxf6 {[%emt 0:00:15] White is slightly better.} gxf6 {[%emt 0:00:07]} 11. e4 {[%emt 0:00:28] [#]} Rd8 $146 {[%emt 0:02:45]} ({Predecessor:} 11... Ne5 12. Nxe5 Qxe5 13. exd5 Qxd5 14. Ne4 Be7 15. Qe2 f5 16. Ng3 Bd7 17. Bxf5 Bc6 {1-0 (81) Zhizmer,Y (2393)-Odnorozhenko,E (2242) Kiev 2006}) 12. exd5 {[%emt 0:18:07]} Rxd5 {[%emt 0:04:44]} 13. Ne4 {[%emt 0:01:22][%cal Bd2e4,Be4g3,Bg3h5][%mdl 32]} Be7 {[%emt 0:01:19] aiming for ...Qd8.} 14. Qe2 {[%emt 0:00:28]} f5 {[%emt 0:03:48]} 15. Ng3 {[%emt 0:01:12]} Ne5 $132 {[%emt 0:05:24][%mdl 2048] Black puts up resistance} 16. Nxe5 {[%emt 0:00:55]} Qxe5 {[%emt 0:02:09]} 17. Qf3 {[%emt 0:00:32]} Rd8 {[%emt 0:06:06]} 18. Rfe1 {[%emt 0:03:26][%cal Bf1e1,Be1e3,Be3g3][%mdl 32]} Qc7 {[%emt 0:03:50]} 19. Nh5 {[%emt 0:03:31][%cal Od3f5]} Kh8 {[%emt 0:02:03]} 20. Qe3 {[%emt 0:03:56]} Qc5 {[%emt 0:07:17] [#]} 21. Qh6 {[%emt 0:04:24][%csl Gh5][%cal Rh6g7]} Rg8 {[%emt 0:00:13] Inhibits Qg7+.} 22. Nf6 {[%emt 0:02:31][%csl Gf6][%cal Rh6h7]} Rg7 {[%emt 0:04:28]} 23. Re3 $1 {[%emt 0:09:06] Threatens to win with Rg3. Chess con chili.} Bxf6 {[%emt 0:00:56]} 24. Qxf6 {[%emt 0:00:05][%cal Od3b5]} Bd7 {[%emt 0:00:40] Inhibits Bb5.} 25. Rg3 {[%emt 0:00:51][%csl Gg3][%cal Rf6g7]} Qf8 {[%emt 0:00:34]} 26. Re1 {[%emt 0:01:56] Ree3 is the strong threat.} Kg8 {[%emt 0:02:49]} 27. Ree3 $1 {[%emt 0:04:34] White is much more active. The black rooks are badly placed.} Rg6 {[%emt 0:00:18] [#]} 28. Be2 {[%emt 0:00:48]} ({Better is} 28. h4 $1 $16 {[%cal Rh4h5] Hoping for h5.} Qd8 29. Qe5 Qxh4 30. Rxg6+ fxg6 {[#]} 31. Bxf5 $1 exf5 32. Qd5+ Kh8 33. Qxd7) 28... Qd8 {[%emt 0:01:23]} 29. Qe5 {[%emt 0:02:29] Strongly threatening Rd3.} Qb8 $1 {[%emt 0:07:04]} 30. Qd4 {[%emt 0:02:11]} Bc6 {[%emt 0:02:40]} 31. Rxg6+ {[%emt 0:16:45]} hxg6 {[%emt 0:00:24]} 32. Rh3 {[%emt 0:00:15][%csl Gh3][%cal Rd4h8]} e5 {[%emt 0:00:18]} 33. Qh4 {[%emt 0:00:25][%csl Gh3][%cal Rh4h8]} Kg7 {[%emt 0:00:58] Against Qh8+} 34. Qh7+ {[%emt 0:00:59]} Kf6 {[%emt 0:01:05]} 35. Qh4+ {[%emt 0:00:54]} Kg7 $1 {[%emt 0:00:06]} 36. Bc4 {[%emt 0:00:05] White wants to mate with Qh7+.} Qf8 {[%emt 0:04:18]} 37. Qh7+ {[%emt 0:02:27]} ({Don't take} 37. Qg5 Rd8 $16) 37... Kf6 {[%emt 0:00:06]} 38. Rd3 {[%emt 0:00:19]} Qg8 $2 {[%emt 0:01:21] This costs Black the game.} (38... Re8 $11 {and Black has nothing to worry.}) 39. Qh4+ $18 {[%emt 0:08:07]} ({But not} 39. Rd6+ Ke7 40. Re6+ Kd7 41. Qxg8 Rxg8 42. Rxe5 Rf8 $16) 39... Kg7 {[%emt 0:00:06]} 40. Rd6 {[%emt 0:00:06] And now Qf6+ would win.} Re8 {[%emt 0:08:41]} 41. Qg5 {[%emt 0:36:20][%cal Od6g6] Black must now prevent Rxg6+!} Kf8 $2 {[%emt 0:34:28] [#]} (41... Qh7 42. h3 (42. Rf6 Rf8 $14) 42... Kf8) 42. Bxf7 $1 {[%emt 0:00:00][%mdl 512]} Qxf7 {[%emt 0:00:00]} 43. Rf6 {[%emt 0:00:00]} Kg7 {[%emt 0:00:00]} 44. Rxf7+ {[%emt 0:00:00]} Kxf7 {[%emt 0:00:00][%mdl 4096] Endgame KQ-KRB} 45. h4 {[%emt 0:00:00]} Rh8 {[%emt 0:00:00]} 46. c4 {[%emt 0:00:00]} Be4 {[%emt 0:00:00]} 47. b4 {[%emt 0:00:00]} Rh5 {[%emt 0:00:00]} (47... a6 $142 48. f3 Bc6) 48. Qd8 {[%emt 0:00:00] White is clearly winning.} f4 {[%emt 0:00:00]} 49. f3 {[%emt 0:00:00]} Bf5 {[%emt 0:00:00]} 50. Qc7+ {[%emt 0:00:00]} Kg8 {[%emt 0:00:00]} 51. Qxb7 {[%emt 0:00:00] Weighted Error Value: White=0.09 (flawless) /Black=0.22 (precise)} 1-0